bitfinex/quotes_ETHUSD_20240907
["timestamp","ask_amount","ask_price","bid_price","bid_amount"]
[1725745076390,0.04050161,2271.5,2271.3,11.76969692]
[1725745076554,4.40183,2271.8,2271.3,16.17235692]
[1725745076755,0.04030723,2271.4,2271.3,16.17235692]
[1725745077088,11.83122,2272.1,2271.6,4.40218]
[1725745077250,7.43,2272.1,2271.6,8.80426]
[1725745077450,7.43,2272.1,2271.6,4.40208]
[1725745077675,0.04107718,2272.0,2271.6,4.40207]
[1725745078064,0.04107718,2272.0,2271.8,6.86927]
[1725745078389,0.04107718,2272.0,2271.9,8.89122418]
[1725745078600,0.04107718,2272.0,2271.9,11.8032]
[1725745078803,8.80067,2272.6,2272.0,4.40129]
[1725745079085,8.80067,2272.6,2272.1,3.0]
[1725745079291,8.80068,2272.6,2272.1,3.0]
[1725745079866,4.40045,2272.5,2272.1,3.0]
[1725745081389,0.04019046,2272.4,2272.1,3.0]
[1725745081589,0.04019046,2272.4,2272.1,4.180289]
[1725745083801,0.04019046,2272.4,2272.1,8.581489]
[1725745084297,0.04039015,2272.3,2272.1,8.581489]
[1725745084515,4.40033,2272.6,2272.1,8.581489]
[1725745084661,0.0402534,2272.2,2272.1,8.581489]
[1725745084861,4.40033,2272.6,2272.1,8.581489]
[1725745085167,0.04066363,2272.5,2272.1,8.581489]
[1725745086773,4.40077,2272.4,2272.1,3.0]
[1725745086958,4.40077,2272.4,2271.9,3.0]
[1725745086959,4.40092,2272.3,2271.9,3.0]
[1725745087163,4.44092251,2272.3,2271.9,3.0]
[1725745088167,4.40103,2272.2,2271.9,3.0]
[1725745088387,0.04151867,2272.2,2271.9,5.3904]
[1725745088693,4.40083,2272.3,2271.9,5.3904]
[1725745089077,4.40116,2272.2,2271.9,5.3904]
[1725745089280,0.04140293,2272.1,2271.9,3.0]
[1725745090576,4.44266293,2272.1,2271.9,3.0]
[1725745092064,0.04140293,2272.1,2271.9,3.0]
[1725745092903,0.04139372,2272.0,2271.9,3.0]
[1725745093270,8.80215,2272.2,2271.9,3.0]
[1725745093471,0.04147864,2272.1,2271.9,3.0]
[1725745094707,4.40102,2272.2,2271.9,3.0]
[1725745095962,8.80215,2272.2,2271.9,3.0]
[1725745096167,4.40102,2272.2,2271.9,3.0]
[1725745096812,8.80214,2272.2,2271.9,3.0]
[1725745096997,4.40102,2272.2,2271.9,3.0]
[1725745097297,8.80214,2272.2,2271.9,3.0]
[1725745097472,4.40102,2272.2,2271.9,3.0]
[1725745097892,8.80213,2272.2,2271.9,3.0]
[1725745098507,4.40102,2272.2,2271.9,3.0]
[1725745099116,8.80213,2272.2,2271.9,3.0]
[1725745099409,4.40102,2272.2,2271.9,3.0]
[1725745099578,4.40122,2272.1,2271.9,3.96020992]
[1725745099913,4.40102,2272.2,2271.9,3.96020992]
[1725745100095,8.80215,2272.2,2271.9,3.96020992]
[1725745100297,4.40102,2272.2,2271.9,3.96020992]
[1725745101224,4.40085,2272.3,2271.9,3.96020992]
[1725745101372,4.40085,2272.3,2272.0,0.82397091]
[1725745102403,4.40085,2272.3,2272.0,3.15937091]
[1725745102573,4.40085,2272.3,2272.1,3.0]
[1725745103477,4.40045,2272.5,2272.1,3.0]
[1725745104773,4.40028,2272.6,2272.1,3.0]
[1725745105000,4.40028,2272.6,2272.2,1.05607209]
[1725745109722,21.37458955,2273.0,2272.3,0.0880115]
[1725745109723,19.91,2273.0,2272.3,0.0880115]
[1725745109928,19.91,2273.0,2272.5,4.4003]
[1725745110236,19.9627424,2273.0,2272.6,3.0]
[1725745110417,0.0527424,2273.0,2272.6,3.0]
[1725745110618,8.79874,2273.1,2272.6,4.42241568]
[1725745111503,8.79874,2273.1,2272.6,4.51041249]
[1725745113220,1.99919597,2273.4,2272.6,4.51041249]
[1725745113221,4.39898,2273.3,2272.7,4.39993]
[1725745113446,8.79799,2273.3,2272.8,5.3354]
[1725745113595,4.39898,2273.3,2272.8,9.73525]
[1725745113803,4.39898,2273.3,2272.8,11.29103857]
[1725745114001,4.39871,2273.4,2272.8,15.69079857]
[1725745114202,8.79723,2273.5,2272.9,4.39956]
[1725745114401,8.79723,2273.5,2273.0,7.48740857]
[1725745114402,4.39861,2273.5,2273.0,7.48740857]
[1725745117240,4.39861,2273.5,2273.1,2.3354]
[1725745117442,4.39832,2273.6,2273.1,3.45713361]
[1725745117646,4.39832,2273.6,2273.2,3.0]
[1725745119546,4.39832,2273.6,2273.2,3.08797164]
[1725745119758,8.79654,2273.7,2273.2,3.08797164]
[1725745120054,8.79654,2273.7,2273.2,4.1736025]
[1725745121044,4.39835,2273.6,2273.2,4.1736025]
[1725745123823,4.39835,2273.6,2273.2,4.1736027]
[1725745124023,4.39826,2273.7,2273.3,0.08796906]
[1725745128463,4.39826,2273.7,2273.2,8.48455086]
[1725745128674,8.79649,2273.7,2273.3,1.52190909]
[1725745129947,4.39831,2273.6,2273.3,1.52190909]
[1725745130152,1.46458955,2273.5,2272.8,2.4869]
[1725745130336,4.39961,2273.0,2272.6,14.15639921]
[1725745130534,4.39961,2273.0,2272.6,6.76639921]
[1725745130535,4.39959,2273.0,2272.6,6.76639921]
[1725745130778,4.39959,2273.0,2272.6,9.17774213]
[1725745130978,8.79916,2273.0,2272.6,9.17774213]
[1725745131183,4.39957,2273.0,2272.6,9.17774213]
[1725745132540,4.39957,2273.0,2272.7,3.0]
[1725745132541,4.39955,2273.0,2272.7,3.0]
[1725745132742,8.79912,2273.0,2272.7,3.0]
[1725745132977,4.39966,2272.9,2272.6,9.17774213]
[1725745133477,4.39955,2273.0,2272.6,9.17774213]
[1725745133662,8.79918,2273.0,2272.6,9.17774213]
[1725745133864,4.39955,2273.0,2272.6,9.17774213]
[1725745134362,4.39955,2273.0,2272.7,3.0]
[1725745134540,4.39967,2272.9,2272.7,3.0]
[1725745134936,4.39967,2272.9,2272.6,3.0]
[1725745135142,4.39967,2272.9,2272.6,3.740043]
[1725745136057,7.43,2273.4,2272.6,3.740043]
[1725745136058,11.8288,2273.4,2272.9,4.39956]
[1725745136243,7.43,2273.4,2273.1,6.88616]
[1725745136438,4.39824,2273.7,2273.1,8.41149467]
[1725745136439,4.3984,2273.6,2273.1,8.41149467]
[1725745136645,8.79645,2273.7,2273.2,7.39908]
[1725745136875,4.39821,2273.7,2273.2,7.39908]
[1725745138589,8.79642,2273.7,2273.2,7.39908]
[1725745139581,4.39821,2273.7,2273.2,7.39908]
[1725745139773,8.79642,2273.7,2273.3,1.13233396]
[1725745143603,8.79646,2273.7,2273.3,1.13233396]
[1725745144463,4.39794,2273.8,2273.3,1.13233396]
[1725745144717,4.39889,2273.3,2273.2,3.0]
[1725745144876,4.39889,2273.3,2273.1,3.0]
[1725745145476,8.79789,2273.3,2273.1,3.0]
[1725745145676,4.39908,2273.2,2273.1,3.0]
[1725745145884,4.39889,2273.3,2273.1,3.0]
[1725745146206,8.79731,2273.5,2273.1,3.0]
[1725745146790,4.39872,2273.4,2273.1,3.0]
[1725745148501,4.39862,2273.5,2273.1,7.39923]
[1725745148801,4.3983,2273.7,2273.2,3.51427292]
[1725745148960,8.79658,2273.7,2273.3,3.0]
[1725745149485,4.39828,2273.7,2273.3,3.0]
[1725745149697,4.39822,2273.7,2273.4,1.09133129]
[1725745150060,8.79645,2273.7,2273.4,1.09133129]
[1725745150266,4.39822,2273.7,2273.4,1.09133129]
[1725745150994,8.79643,2273.7,2273.4,1.09133129]
[1725745151375,4.39821,2273.7,2273.4,1.09133129]
[1725745151576,4.39821,2273.7,2273.5,0.40913313]
[1725745151878,8.79642,2273.7,2273.5,0.40913313]
[1725745152879,4.39821,2273.7,2273.5,0.40913313]
[1725745154500,8.7957,2273.9,2273.5,0.40913313]
[1725745154676,8.7957,2273.9,2273.6,2.3464]
[1725745154883,8.79569,2273.9,2273.6,5.62195331]
[1725745155282,4.39783,2273.9,2273.6,5.62195331]
[1725745157188,8.79566,2273.9,2273.6,5.62195331]
[1725745158383,4.39783,2273.9,2273.6,5.62195331]
[1725745159323,4.44606668,2273.9,2273.6,5.62195331]
[1725745160383,8.84389668,2273.9,2273.6,5.62195331]
[1725745160783,4.44606668,2273.9,2273.6,5.62195331]
[1725745161095,8.84390668,2273.9,2273.6,5.62195331]
[1725745161788,4.44606668,2273.9,2273.6,5.62195331]
[1725745162115,8.84390668,2273.9,2273.6,5.62195331]
[1725745162735,4.39804,2273.8,2273.6,3.0]
[1725745163024,4.3982,2273.7,2273.3,3.0]
[1725745169200,4.3984,2273.6,2273.3,3.0]
[1725745169345,4.3984,2273.6,2273.0,6.70319921]
[1725745169346,4.39912,2273.2,2273.0,6.70319921]
[1725745169517,4.39912,2273.2,2273.1,3.0]
[1725745171610,4.39855,2273.5,2273.2,2.4237]
[1725745171811,4.39839,2273.6,2273.2,6.82275]
[1725745172117,4.39839,2273.6,2273.3,3.0]
[1725745173833,4.39813,2273.7,2273.3,3.0]
[1725745174164,4.39813,2273.7,2273.3,4.49495699]
[1725745177155,4.39813,2273.7,2273.3,8.89383699]
[1725745178348,4.39809,2273.8,2273.3,8.89383699]
[1725745178710,4.39807,2273.8,2273.3,8.89383699]
[1725745178921,4.39812,2273.7,2273.4,1.5716487]
[1725745180110,8.79457,2274.2,2273.7,4.398]
[1725745180312,8.79452,2274.2,2273.8,3.0]
[1725745180762,8.79452,2274.2,2273.7,7.4860497]
[1725745181066,8.79452,2274.2,2273.7,4.61817568]
[1725745181067,4.39734,2274.1,2273.7,4.61817568]
[1725745184091,4.39734,2274.1,2273.7,4.53022598]
[1725745187069,8.79455,2274.2,2273.7,8.92829598]
[1725745188139,4.39735,2274.1,2273.7,8.92829598]
[1725745188664,4.39735,2274.1,2273.8,0.08794814]
[1725745188861,4.39735,2274.1,2273.8,1.42938855]
[1725745189035,4.39735,2274.1,2273.8,1.34144041]
[1725745196667,4.39716,2274.2,2273.8,8.32450884]
[1725745196868,4.39716,2274.2,2273.9,3.0]
[1725745200291,4.39666,2274.5,2274.0,4.48547767]
[1725745200502,0.59494045,2274.6,2274.0,4.48547767]
[1725745200503,0.06033403,2274.6,2274.2,6.81854]
[1725745200782,0.06033403,2274.6,2274.3,7.39695]
[1725745201103,0.06033403,2274.6,2274.4,6.81806]
[1725745201387,0.06033403,2274.6,2274.5,3.981806]
[1725745202055,0.06033403,2274.6,2274.5,4.06972675]
[1725745202456,0.06033403,2274.6,2274.5,3.981806]
[1725745202679,0.06033403,2274.6,2274.5,4.06972665]
[1725745205572,0.06033403,2274.6,2274.5,8.378376]
[1725745206285,0.06033403,2274.6,2274.5,12.86286111]
[1725745208709,0.06033403,2274.6,2274.5,12.774946]
[1725745210384,0.06033403,2274.6,2274.5,8.378376]
[1725745212908,0.06033403,2274.6,2274.5,8.819476]
[1725745213897,0.06033403,2274.6,2274.5,4.422906]
[1725745214232,0.06033403,2274.6,2274.5,3.0]
[1725745214395,0.06033403,2274.6,2273.9,9.8114]
[1725745214600,0.06033403,2274.6,2273.8,1.34144041]
[1725745214601,4.39736,2274.1,2273.8,1.34144041]
[1725745214773,4.39767,2274.0,2273.7,4.27949921]
[1725745214970,4.39767,2274.0,2273.8,0.4411]
[1725745217312,4.39767,2274.0,2273.8,3.4411]
[1725745218005,4.39736,2274.1,2273.8,3.4411]
[1725745218211,8.7948,2274.1,2273.8,3.4411]
[1725745218782,4.39736,2274.1,2273.8,3.4411]
[1725745219925,4.39736,2274.1,2273.8,3.0]
[1725745221084,8.79418,2274.3,2273.8,4.16776992]
[1725745222716,4.39705,2274.3,2273.8,10.84457992]
[1725745223221,4.39705,2274.3,2273.9,4.39768]
[1725745223409,4.39705,2274.3,2274.0,3.0]
[1725745223817,8.79346,2274.5,2274.0,3.0]
[1725745224139,4.3968,2274.4,2274.0,3.0]
[1725745224621,4.3968,2274.4,2273.9,3.0]
[1725745224825,4.3968,2274.4,2273.9,4.99629791]
[1725745225990,4.3967,2274.5,2273.9,4.99629791]
[1725745226195,8.79344,2274.5,2274.0,4.39753]
[1725745226491,8.79344,2274.5,2274.1,3.0]
[1725745226694,4.39668,2274.5,2274.1,3.93938279]
[1725745227108,4.39668,2274.5,2274.1,8.33671279]
[1725745227542,0.06033403,2274.6,2274.2,2.2789]
[1725745227726,0.06033403,2274.6,2274.3,4.39685]
[1725745227925,0.06033403,2274.6,2274.4,3.0]
[1725745228114,0.06033403,2274.6,2274.5,0.739685]
[1725745230699,0.06033403,2274.6,2274.5,3.018585]
[1725745231045,0.06033403,2274.6,2274.5,6.018585]
[1725745231815,0.06033403,2274.6,2274.5,10.50307779]
[1725745232020,0.13826278,2274.6,2274.5,10.94417779]
[1725745232243,0.06033403,2274.6,2274.5,10.94417779]
[1725745232414,0.06033403,2274.6,2274.5,10.856255]
[1725745250336,0.06033403,2274.6,2274.5,15.252825]
[1725745257852,0.06033403,2274.6,2274.5,15.802825]
[1725745258864,0.06033403,2274.6,2274.5,20.199395]
[1725745260661,0.06033403,2274.6,2274.5,12.973925]
[1725745262764,0.06033403,2274.6,2274.5,15.467825]
[1725745266098,4.39516,2275.3,2274.8,4.39587]
[1725745266273,4.39516,2275.3,2274.9,3.0]
[1725745266473,0.07168145,2275.2,2274.9,3.0]
[1725745266718,4.39516,2275.3,2274.9,3.0]
[1725745267019,0.07168145,2275.2,2274.9,3.0]
[1725745267199,0.07168145,2275.2,2274.9,3.0879035]
[1725745267392,4.39516,2275.3,2274.9,3.69030203]
[1725745267594,0.07154708,2275.1,2274.9,8.08609203]
[1725745267790,4.39516,2275.3,2274.9,8.08609203]
[1725745267998,0.07168145,2275.2,2274.9,8.08609203]
[1725745268514,0.07156239,2275.1,2274.9,8.08609203]
[1725745268874,4.39516,2275.3,2274.9,8.08609203]
[1725745269618,0.07172503,2275.2,2274.9,8.08609203]
[1725745270117,0.07159066,2275.1,2274.9,8.08609203]
[1725745270302,4.39516,2275.3,2274.9,8.08609203]
[1725745270706,0.07173524,2275.2,2274.9,8.08609203]
[1725745271131,4.39516,2275.3,2274.9,8.08609203]
[1725745271424,4.39516,2275.3,2274.9,3.69030203]
[1725745271605,0.07173524,2275.2,2274.9,3.69030203]
[1725745271989,4.39516,2275.3,2274.9,3.69030203]
[1725745272189,0.07173524,2275.2,2274.9,3.69030203]
[1725745272413,4.39516,2275.3,2274.9,3.69030203]
[1725745273123,0.06941446,2275.2,2274.9,3.69030203]
[1725745273491,4.39516,2275.3,2274.9,3.69030203]
[1725745274003,0.06958405,2275.2,2274.9,3.69030203]
[1725745274576,0.06944969,2275.1,2274.9,3.69030203]
[1725745274755,4.39516,2275.3,2274.9,3.69030203]
[1725745274962,0.06958405,2275.2,2274.9,3.0879035]
[1725745275173,4.39516,2275.3,2274.9,3.0879035]
[1725745275360,0.06958405,2275.2,2274.9,3.0879035]
[1725745275537,4.3953,2275.2,2274.9,3.0]
[1725745275738,0.06949562,2275.1,2274.9,3.0]
[1725745275938,4.3953,2275.2,2274.9,3.0]
[1725745276161,0.06951604,2275.1,2274.9,3.0]
[1725745276370,4.3953,2275.2,2274.9,3.0]
[1725745276572,0.06951093,2275.1,2274.9,3.0]
[1725745276766,4.3953,2275.2,2274.9,3.0]
[1725745276963,0.06951093,2275.1,2274.9,3.0]
[1725745277165,4.3953,2275.2,2274.9,3.0]
[1725745277441,0.06951093,2275.1,2274.9,3.0]
[1725745277855,4.3953,2275.2,2274.9,3.0]
[1725745278164,0.06951093,2275.1,2274.9,3.0]
[1725745278369,4.3953,2275.2,2274.9,3.0]
[1725745278559,0.06951093,2275.1,2274.9,3.0]
[1725745278754,4.3953,2275.2,2274.9,3.0]
[1725745279085,0.06951093,2275.1,2274.9,3.0]
[1725745279451,4.3953,2275.2,2274.9,3.0]
[1725745279699,4.3953,2275.2,2274.8,3.4411]
[1725745279861,0.06951093,2275.1,2274.8,3.0]
[1725745280193,4.3953,2275.2,2274.8,3.0]
[1725745280369,0.06965225,2275.1,2274.8,3.0]
[1725745280571,4.3953,2275.2,2274.8,3.0]
[1725745280975,0.06965225,2275.1,2274.8,3.0]
[1725745281179,4.3953,2275.2,2274.8,3.0]
[1725745281417,0.06965225,2275.1,2274.8,3.0]
[1725745281939,11.24054047,2276.1,2275.0,2.2679]
[1725745282063,4.39417,2275.8,2275.3,7.58738748]
[1725745282264,4.39379,2276.0,2275.5,4.39461]
[1725745282265,4.39376,2276.0,2275.5,4.39461]
[1725745282467,4.39376,2276.0,2275.6,3.878935]
[1725745282468,0.06026343,2275.7,2275.6,3.878935]
[1725745282664,4.39376,2276.0,2275.6,3.878935]
[1725745282895,4.39349,2276.1,2275.6,3.0]
[1725745283095,0.05819879,2275.9,2275.6,3.0]
[1725745283281,4.39343,2276.2,2275.6,7.3943]
[1725745283767,0.05807458,2276.1,2275.6,7.3943]
[1725745284389,0.05807458,2276.1,2275.6,11.78865]
[1725745285878,0.05807458,2276.1,2275.7,4.39421]
[1725745286066,0.05807458,2276.1,2275.8,3.0]
[1725745286269,0.05807458,2276.1,2275.8,3.08787215]
[1725745290496,0.05807458,2276.1,2275.8,3.0]
[1725745290773,0.05807458,2276.1,2275.7,3.4411]
[1725745291397,4.39367,2276.0,2275.7,3.4411]
[1725745291595,0.0536696,2275.9,2275.7,3.4411]
[1725745291797,4.39331,2276.2,2275.4,3.0]
[1725745291798,4.39434,2275.7,2275.4,3.0]
[1725745292008,0.05326649,2275.6,2275.4,3.4411]
[1725745292178,4.39434,2275.7,2275.4,3.4411]
[1725745292179,4.39434,2275.7,2275.4,6.257841]
[1725745292511,4.39434,2275.7,2275.4,3.4411]
[1725745293291,4.39434,2275.7,2275.4,0.4411]
[1725745293496,0.05332303,2275.6,2275.4,0.4411]
[1725745293740,4.39502,2275.3,2275.1,4.27949921]
[1725745294142,0.05331754,2275.2,2275.1,4.27949921]
[1725745294322,0.05331754,2275.2,2274.7,4.39617]
[1725745294323,4.44852754,2275.2,2274.7,4.39617]
[1725745294635,4.44852754,2275.2,2274.8,1.618238]
[1725745294636,0.05324429,2275.1,2274.8,1.618238]
[1725745294800,0.05324429,2275.1,2274.8,6.014138]
[1725745295000,8.79018,2275.3,2274.8,6.014138]
[1725745295214,0.05305084,2275.2,2274.8,6.014138]
[1725745295431,8.79018,2275.3,2274.9,3.0]
[1725745295737,0.052947,2275.1,2274.9,3.0]
[1725745295913,8.79018,2275.3,2274.9,3.0]
[1725745296110,0.05281255,2275.0,2274.9,3.0]
[1725745296313,8.79018,2275.3,2274.9,3.0]
[1725745296930,0.05314261,2275.2,2274.9,3.0]
[1725745297303,8.79018,2275.3,2274.9,3.0]
[1725745297503,0.05107502,2275.1,2274.9,3.0]
[1725745297695,4.39521,2275.2,2274.9,3.0]
[1725745297927,0.05094057,2275.0,2274.9,3.0]
[1725745298240,0.04933509,2275.0,2274.9,3.0]
[1725745298445,4.39521,2275.2,2274.9,3.0]
[1725745298745,0.04926927,2275.0,2274.9,3.0]
[1725745298956,4.39521,2275.2,2274.9,3.0]
[1725745299110,0.04936568,2275.0,2274.9,3.0]
[1725745299441,0.04939628,2275.0,2274.9,3.0]
[1725745299628,4.39521,2275.2,2274.9,3.0]
[1725745299828,0.04940372,2275.1,2274.9,3.0]
[1725745306947,4.44483372,2275.1,2274.9,3.0]
[1725745307117,4.39563,2275.0,2274.7,3.0]
[1725745307331,4.44327064,2275.0,2274.7,3.0]
[1725745310034,4.39563,2275.0,2274.7,3.0]
[1725745310657,4.44273248,2274.9,2274.7,3.0]
[1725745310859,4.39607,2274.8,2274.5,3.4411]
[1725745311231,0.04677205,2274.7,2274.5,3.0]
[1725745311436,4.39619,2274.7,2274.5,3.0]
[1725745311760,0.04686378,2274.6,2274.5,3.0]
[1725745312157,4.39619,2274.7,2274.5,3.0]
[1725745312464,4.39581,2274.9,2274.5,3.0]
[1725745312465,4.39599,2274.8,2274.5,3.0]
[1725745312619,4.44341378,2274.6,2274.4,4.27949921]
[1725745312963,4.44341378,2274.6,2273.8,6.70058755]
[1725745312964,4.39657,2274.5,2274.0,11.78739]
[1725745313167,4.39657,2274.5,2274.0,6.65048464]
[1725745313367,0.04640596,2274.4,2274.1,0.4411]
[1725745314019,4.44316596,2274.4,2274.1,0.4411]
[1725745314462,8.84002596,2274.4,2274.0,0.4411]
[1725745314658,4.39704,2274.3,2274.0,0.4411]
[1725745314965,0.04612251,2274.2,2274.0,0.4411]
[1725745315459,4.39704,2274.3,2273.9,0.4411]
[1725745315672,0.04554899,2274.1,2273.9,3.4411]
[1725745315822,4.39704,2274.3,2273.9,4.99093567]
[1725745316026,0.04568815,2274.2,2273.9,4.99093567]
[1725745316226,4.39704,2274.3,2273.9,4.99093567]
[1725745316617,0.04571875,2274.2,2273.9,4.99093567]
[1725745317264,4.39704,2274.3,2273.9,4.99093567]
[1725745317265,0.04410659,2274.1,2273.9,4.99093567]
[1725745317435,4.39704,2274.3,2273.9,4.99093567]
[1725745317627,0.04443318,2274.2,2273.9,3.4411]
[1725745317957,4.39704,2274.3,2273.9,3.4411]
[1725745318261,0.04427297,2274.1,2273.9,3.4411]
[1725745318465,4.39704,2274.3,2273.9,3.4411]
[1725745318763,0.04443809,2274.2,2273.9,3.4411]
[1725745318969,4.39717,2274.2,2273.9,4.54983567]
[1725745319169,4.39717,2274.2,2273.7,4.27949921]
[1725745319170,4.39792,2273.8,2273.7,4.27949921]
[1725745319684,4.39989,2272.8,2272.3,8.31457748]
[1725745319846,4.39989,2272.8,2272.3,4.27949921]
[1725745320180,0.04107715,2272.7,2272.4,0.4411]
[1725745320330,4.40032,2272.6,2272.3,4.27949921]
[1725745320751,0.04347935,2272.5,2272.3,4.27949921]
[1725745321820,0.03764345,2272.5,2272.3,4.27949921]
[1725745322632,0.03764345,2272.5,2272.4,3.0]
[1725745322969,4.39958,2273.0,2272.4,3.72794992]
[1725745323278,4.39958,2273.0,2272.4,8.21642095]
[1725745323479,0.04318716,2272.9,2272.4,8.21642095]
[1725745323833,0.04318716,2272.9,2272.4,12.61693095]
[1725745324079,4.3992,2273.2,2272.4,8.21642095]
[1725745324366,0.0430703,2272.8,2272.5,1.48971202]
[1725745324621,4.3992,2273.2,2272.5,1.48971202]
[1725745324869,7.91266229,2273.4,2272.6,4.40023]
[1725745325083,0.04065966,2273.1,2272.7,3.0]
[1725745325229,7.91266229,2273.4,2272.7,7.40002]
[1725745325429,0.04092897,2273.3,2272.7,3.0]
[1725745325980,4.43985897,2273.3,2272.7,3.0]
[1725745326131,4.43985897,2273.3,2272.7,3.9330932]
[1725745327467,4.39934,2273.1,2272.7,3.0]
[1725745327673,4.39934,2273.1,2272.5,0.4411]
[1725745328475,4.39934,2273.1,2272.5,4.84151]
[1725745328682,4.39934,2273.1,2272.6,3.0]
[1725745329771,4.39957,2273.0,2272.6,3.0]
[1725745330180,4.39969,2272.9,2272.6,3.0]
[1725745330331,8.79915,2273.0,2272.5,3.4411]
[1725745331976,4.39957,2273.0,2272.5,3.4411]
[1725745332143,8.79914,2273.0,2272.5,3.4411]
[1725745332357,8.79917,2273.0,2272.5,3.4411]
[1725745332663,4.39957,2273.0,2272.5,3.4411]
[1725745332971,8.79915,2273.0,2272.5,3.4411]
[1725745333686,8.79915,2273.0,2272.5,3.0]
[1725745334043,4.39967,2272.9,2272.5,3.0]
[1725745335651,4.39967,2272.9,2272.4,3.0]
[1725745335981,4.39967,2272.9,2272.5,4.40041]
[1725745336138,4.39967,2272.9,2272.6,3.0]
[1725745337384,4.39939,2273.1,2272.6,7.40022]
[1725745337558,8.79876,2273.1,2272.6,7.40022]
[1725745337874,0.04092897,2273.3,2272.7,6.80108]
[1725745337875,0.04159369,2273.0,2272.7,6.80108]
[1725745338184,4.399,2273.3,2272.8,8.379858]
[1725745338345,4.399,2273.3,2272.8,7.39975]
[1725745338747,0.04188225,2273.2,2272.8,7.39975]
[1725745338977,0.04188225,2273.2,2272.9,4.39966]
[1725745339187,4.39872,2273.4,2273.0,3.0]
[1725745340142,4.39864,2273.5,2273.0,3.0]
[1725745340143,4.39864,2273.5,2273.0,7.39935]
[1725745340381,8.79733,2273.5,2273.0,8.579242]
[1725745340676,4.3986,2273.5,2273.1,4.39925]
[1725745340877,4.3986,2273.5,2273.2,3.0]
[1725745341677,12.31031229,2273.7,2273.2,7.39905]
[1725745341877,12.31027229,2273.7,2273.2,7.39905]
[1725745342085,12.31027229,2273.7,2273.2,8.9385792]
[1725745342086,7.91206229,2273.7,2273.2,8.9385792]
[1725745342295,7.91206229,2273.7,2273.2,8.9385192]
[1725745344639,4.39818,2273.7,2273.2,8.9385192]
[1725745347583,4.39787,2273.9,2273.3,6.81597]
[1725745347584,4.39799,2273.8,2273.3,6.81597]
[1725745347890,4.39799,2273.8,2273.4,3.0]
[1725745348043,4.39799,2273.8,2273.4,4.43554992]
[1725745349759,8.79577,2273.9,2273.4,8.83422992]
[1725745350571,4.39803,2273.8,2273.4,4.43554992]
[1725745351415,4.39812,2273.7,2273.4,4.43554992]
[1725745351994,4.39812,2273.7,2273.4,5.4171]
[1725745353006,4.39793,2273.8,2273.4,5.4171]
[1725745356391,4.39793,2273.8,2273.4,9.81579]
[1725745368570,4.39787,2273.9,2273.4,9.81579]
[1725745370947,8.79569,2273.9,2273.4,9.81579]
[1725745371131,4.39782,2273.9,2273.4,9.81579]
[1725745372563,8.79563,2273.9,2273.4,9.81579]
[1725745373365,4.39781,2273.9,2273.4,9.81579]
[1725745374064,8.79564,2273.9,2273.4,9.81579]
[1725745374444,4.39781,2273.9,2273.4,9.81579]
[1725745378261,4.39781,2273.9,2273.4,11.62178618]
[1725745379275,8.79564,2273.9,2273.4,11.62178618]
[1725745379592,8.79564,2273.9,2273.4,12.54636366]
[1725745380705,8.79564,2273.9,2273.5,0.92457748]
[1725745380892,4.39781,2273.9,2273.5,5.32297748]
[1725745381203,4.39781,2273.9,2273.7,2.281]
[1725745381507,11.8275,2274.1,2273.7,2.281]
[1725745381883,16.2249,2274.1,2273.7,2.281]
[1725745382092,11.82744,2274.1,2273.7,2.281]
[1725745382409,16.22494,2274.1,2273.7,2.281]
[1725745382567,11.82744,2274.1,2273.7,6.6791]
[1725745382772,11.82744,2274.1,2273.8,3.0]
[1725745383184,4.39744,2274.1,2273.8,3.0]
[1725745383662,1.58461493,2274.2,2273.8,3.0]
[1725745383663,4.39717,2274.2,2273.8,3.0]
[1725745383765,5.98178493,2274.2,2273.8,3.0]
[1725745385214,4.39717,2274.2,2273.8,3.0]
[1725745385408,4.39708,2274.3,2273.9,1.14768617]
[1725745385815,8.79414,2274.3,2273.9,1.14768617]
[1725745386887,4.39717,2274.2,2273.9,1.14768617]
[1725745388970,4.39717,2274.2,2274.0,2.281]
[1725745389172,4.39717,2274.2,2274.0,5.281]
[1725745390004,4.39706,2274.3,2274.0,5.92386862]
[1725745390580,1.58461493,2274.4,2274.0,5.92386862]
[1725745390788,1.58461493,2274.4,2274.0,10.32137862]
[1725745391927,1.58461493,2274.4,2274.0,10.32128862]
[1725745392450,4.39665,2274.5,2274.1,2.281]
[1725745392603,4.39646,2274.6,2274.2,2.281]
[1725745393016,4.39646,2274.6,2274.2,5.281]
[1725745393224,4.39646,2274.6,2274.3,1.08251175]
[1725745393425,4.39646,2274.6,2274.3,4.08251175]
[1725745395633,5.98091493,2274.7,2274.3,4.08251175]
[1725745395829,10.37726493,2274.7,2274.3,4.08251175]
[1725745396010,10.37719493,2274.7,2274.3,4.08251175]
[1725745396221,8.79255,2274.7,2274.4,1.07606418]
[1725745396556,8.79255,2274.7,2274.5,2.281]
[1725745396712,4.39627,2274.7,2274.5,2.281]
[1725745397329,8.79254,2274.7,2274.5,2.281]
[1725745398259,4.39627,2274.7,2274.5,2.281]
[1725745398552,4.39627,2274.7,2274.5,2.91670642]
[1725745398981,8.79255,2274.7,2274.5,2.91670642]
[1725745400146,8.79255,2274.7,2274.6,3.0]
[1725745405853,4.39627,2274.7,2274.6,3.0]
[1725745406579,8.79259,2274.7,2274.6,3.0]
[1725745406788,4.39627,2274.7,2274.5,3.09430642]
[1725745406937,4.39627,2274.7,2274.6,3.0]
[1725745407384,4.39627,2274.7,2274.5,2.4586]
[1725745408674,8.79254,2274.7,2274.5,2.4586]
[1725745408843,4.39627,2274.7,2274.5,2.4586]
[1725745409039,8.7926,2274.7,2274.5,2.4586]